bitfinex/quotes_ETHUSD_20250603
["timestamp","ask_amount","ask_price","bid_price","bid_amount"]
[1748939483098,3.83656244,2606.5,2606.2,10.0]
[1748939483303,3.83671345,2606.4,2606.1,12.91993504]
[1748939483798,3.83691714,2606.3,2606.1,12.91993504]
[1748939484003,3.83691714,2606.3,2606.0,8.0]
[1748939484204,3.83691714,2606.3,2606.0,9.22159918]
[1748939484407,3.83677602,2606.4,2606.2,10.0]
[1748939484715,3.83677602,2606.4,2606.1,3.5998]
[1748939484716,3.83677602,2606.4,2606.1,2.72229]
[1748939484924,3.83677602,2606.4,2606.2,10.0]
[1748939485424,3.83677602,2606.4,2606.1,3.35029]
[1748939485720,3.83677602,2606.4,2606.2,10.0]
[1748939485931,3.83677602,2606.4,2606.1,3.35029]
[1748939486084,3.83677602,2606.4,2606.2,10.0]
[1748939486287,3.83677602,2606.4,2606.1,4.858332]
[1748939486821,3.83677602,2606.4,2606.2,10.0]
[1748939487127,3.83685684,2606.3,2606.0,9.22159918]
[1748939487327,3.83677631,2606.4,2606.1,5.290028]
[1748939487523,3.83677631,2606.4,2606.2,10.0]
[1748939488207,3.83677631,2606.4,2606.2,10.5]
[1748939488407,3.83686627,2606.3,2606.1,2.85137]
[1748939488630,3.83677818,2606.4,2606.2,10.0]
[1748939488781,3.83677818,2606.4,2606.1,2.85187]
[1748939488981,3.83677818,2606.4,2606.2,10.0]
[1748939489185,3.83677818,2606.4,2606.1,2.85187]
[1748939489424,3.83677818,2606.4,2606.2,10.0]
[1748939489925,3.83677818,2606.4,2606.1,2.837054]
[1748939490093,3.83677818,2606.4,2606.2,10.0]
[1748939490294,3.83677818,2606.4,2606.1,2.209054]
[1748939490530,3.83677818,2606.4,2606.2,10.0]
[1748939490712,3.83677818,2606.4,2606.1,2.223854]
[1748939491027,3.83677818,2606.4,2606.1,3.685344]
[1748939491212,3.948,2606.4,2606.1,8.66487311]
[1748939491417,3.948,2606.4,2606.2,10.0]
[1748939492027,4.88389866,2606.7,2606.2,10.0]
[1748939492242,7.78341699,2606.6,2606.1,8.6648363]
[1748939492828,3.946,2606.5,2606.3,2.91993504]
[1748939494450,3.946,2606.5,2606.2,10.0]
[1748939495441,3.83645693,2606.6,2606.2,10.0]
[1748939495644,1.0476,2606.7,2606.4,10.0]
[1748939495828,4.88387534,2606.7,2606.5,12.775042]
[1748939496031,8.82787534,2606.7,2606.5,2.775042]
[1748939496406,7.78027534,2606.7,2606.5,2.775042]
[1748939496610,7.78027534,2606.7,2606.3,12.91993504]
[1748939496809,7.78027534,2606.7,2606.3,14.14153422]
[1748939497435,7.78027534,2606.7,2606.4,10.0]
[1748939497747,3.83612091,2606.8,2606.5,4.513349]
[1748939497937,3.943,2606.6,2606.5,4.513349]
[1748939498453,3.943,2606.6,2606.5,3.619316]
[1748939499544,3.83619734,2606.8,2606.5,3.619316]
[1748939499767,7.77729282,2606.7,2606.5,3.619316]
[1748939500842,7.77729282,2606.7,2606.5,2.825591]
[1748939501065,7.77729282,2606.7,2606.5,10.0]
[1748939501261,3.83641525,2606.6,2606.4,10.0]
[1748939501575,3.83641525,2606.6,2606.3,5.04673422]
[1748939502877,3.83641525,2606.6,2606.3,4.14153422]
[1748939503053,3.83641525,2606.6,2606.3,14.14153422]
[1748939504649,7.77417744,2606.8,2606.4,16.093863]
[1748939504869,3.83626831,2606.7,2606.5,10.0]
[1748939506055,3.937,2606.6,2606.2,10.0]
[1748939506260,3.8366616,2606.5,2606.1,15.171378]
[1748939506464,3.8366616,2606.5,2606.3,10.0]
[1748939506987,3.83685684,2606.3,2606.2,10.0]
[1748939507277,3.83685684,2606.3,2606.0,8.0]
[1748939507782,3.83685684,2606.3,2606.0,4.15509]
[1748939507978,3.83685684,2606.3,2606.1,10.0]
[1748939508181,3.83715129,2606.1,2605.8,2.91993504]
[1748939508360,3.83694452,2606.3,2606.0,10.0]
[1748939508557,3.83694452,2606.3,2605.9,10.0]
[1748939508876,3.83694452,2606.3,2606.0,10.0]
[1748939509086,3.83694452,2606.3,2606.0,0.5]
[1748939509247,3.83702053,2606.2,2606.0,0.5]
[1748939509442,3.937,2606.2,2606.0,0.5]
[1748939510279,7.77401285,2606.2,2606.0,0.5]
[1748939510480,3.937,2606.2,2606.0,0.5]
[1748939513282,7.77402113,2606.2,2606.0,0.5]
[1748939513883,3.937,2606.2,2606.0,0.5]
[1748939514997,3.934,2606.5,2606.2,5.32468]
[1748939515196,3.934,2606.5,2606.2,2.91993504]
[1748939515701,7.77057234,2606.5,2606.2,12.91993504]
[1748939516272,3.934,2606.5,2606.2,12.91993504]
[1748939516673,3.934,2606.5,2606.2,2.91993504]
[1748939517065,7.7706062,2606.5,2606.2,2.91993504]
[1748939517680,3.933,2606.5,2606.3,10.0]
[1748939517876,1.0065,2606.8,2606.4,10.96532504]
[1748939518075,6.75478137,2607.7,2606.4,10.96532504]
[1748939518076,4.84236929,2607.0,2606.6,2.91993504]
[1748939518283,3.953,2606.9,2606.6,12.91993504]
[1748939519308,7.7889968,2606.9,2606.6,12.91993504]
[1748939519608,7.7889968,2606.9,2606.5,0.9052]
[1748939520314,7.7889968,2606.9,2606.4,12.91993504]
[1748939520513,7.7889968,2606.9,2606.5,10.0]
[1748939520729,7.7889968,2606.9,2606.5,1.89053179]
[1748939520940,7.7889968,2606.9,2606.4,13.99522994]
[1748939521114,3.83614409,2606.8,2606.5,10.0]
[1748939521567,7.78906213,2606.9,2606.4,13.99522994]
[1748939521768,3.951,2606.9,2606.7,10.0]
[1748939521964,7.78699486,2606.9,2606.6,2.91993504]
[1748939522575,7.78701302,2606.9,2606.6,2.91993504]
[1748939523485,0.02,2606.9,2606.6,2.91993504]
[1748939523810,7.78700025,2606.9,2606.6,2.91993504]
[1748939524114,3.951,2606.9,2606.6,2.91993504]
[1748939524787,3.951,2606.9,2606.6,3.11058815]
[1748939525111,3.951,2606.9,2606.6,2.91993504]
[1748939525674,3.951,2606.9,2606.7,10.0]
[1748939525675,0.02,2606.9,2606.7,10.0]
[1748939526909,0.02,2606.9,2606.6,4.29987383]
[1748939527683,0.02,2606.9,2606.7,10.0]
[1748939528418,0.02,2606.9,2606.6,4.29987383]
[1748939528783,0.02,2606.9,2606.7,10.0]
[1748939529319,0.02,2606.9,2606.6,4.29987383]
[1748939529619,0.02,2606.9,2606.6,2.91993504]
[1748939530485,0.02,2606.9,2606.7,10.0]
[1748939530785,3.85598197,2606.9,2606.6,2.91993504]
[1748939530985,0.02,2606.9,2606.6,2.91993504]
[1748939531181,3.85606125,2606.9,2606.6,2.91993504]
[1748939535704,3.8560236,2606.9,2606.6,2.91993504]
[1748939536938,3.8560236,2606.9,2606.6,10.0]
[1748939537241,3.83626807,2606.7,2606.6,10.0]
[1748939537447,3.83626807,2606.7,2605.8,2.4931529]
[1748939537448,4.86540544,2606.4,2605.9,8.9053]
[1748939537634,1.0286,2606.6,2606.1,8.0]
[1748939537812,3.83658138,2606.5,2606.1,8.0]
[1748939538169,1.0286,2606.6,2606.1,8.0]
[1748939538457,4.86511248,2606.6,2606.1,8.0]
[1748939539026,4.86511248,2606.6,2606.1,11.83712746]
[1748939539230,4.86511248,2606.6,2606.1,8.0]
[1748939539749,3.83657445,2606.5,2606.1,8.0]
[1748939540716,3.8367276,2606.4,2606.1,10.0]
[1748939540968,3.83684512,2606.4,2605.9,8.0]
[1748939541268,3.83684512,2606.4,2606.1,8.0]
[1748939541481,0.9707,2606.3,2605.8,0.56768438]
[1748939541627,3.8374492,2605.9,2605.3,7.66347593]
[1748939541816,4.8081492,2605.9,2605.5,1.44]
[1748939542011,3.83778546,2605.7,2605.4,10.0]
[1748939542216,3.931,2605.7,2605.1,0.19413715]
[1748939542417,3.931,2605.7,2605.1,3.83852277]
[1748939542739,7.76875507,2605.7,2605.3,13.3264]
[1748939542942,7.76875507,2605.7,2605.4,10.0]
[1748939543259,0.9962,2605.5,2605.2,8.0]
[1748939544160,0.9962,2605.5,2605.4,0.5]
[1748939546470,4.83423492,2605.5,2605.4,0.5]
[1748939547268,4.83423492,2605.5,2605.1,8.0]
[1748939547470,0.9962,2605.5,2605.1,8.0]
[1748939547652,4.9272,2605.5,2605.1,3.83853993]
[1748939547840,4.9272,2605.5,2605.1,11.83853993]
[1748939548040,4.8027557,2605.9,2605.4,2.91993504]
[1748939548239,7.76860114,2605.8,2605.4,2.91993504]
[1748939549458,3.932,2605.7,2605.4,2.91993504]
[1748939550168,3.932,2605.8,2605.4,2.91993504]
[1748939550537,3.932,2606.0,2605.7,14.313304]
[1748939550869,8.64155762,2606.0,2605.6,2.91993504]
[1748939551049,8.64155762,2606.0,2605.6,12.91993504]
[1748939552068,0.87222649,2606.0,2605.6,12.91993504]
[1748939552385,4.79016871,2606.1,2605.7,2.91993504]
[1748939552386,4.885,2606.1,2605.7,2.91993504]
[1748939552666,7.76911121,2606.2,2605.7,3.82523504]
[1748939553226,3.83719559,2606.1,2605.7,3.82523504]
[1748939553426,3.837346,2606.0,2605.6,10.0]
[1748939554654,3.837346,2606.0,2605.5,3.82523504]
[1748939554863,3.837346,2606.0,2605.6,10.0]
[1748939555067,3.837346,2606.0,2605.7,2.205106]
[1748939555478,3.837346,2606.0,2605.7,10.0]
[1748939555836,9.03201132,2606.1,2605.6,14.195312]
[1748939556099,7.76918064,2606.1,2605.7,3.843212]
[1748939556278,7.76918064,2606.1,2605.7,3.432212]
[1748939556572,3.932,2606.1,2605.7,3.432212]
[1748939556755,7.76926301,2606.1,2605.7,3.432212]
[1748939558075,7.76926301,2606.1,2605.8,10.0]
[1748939558235,7.76926301,2606.1,2605.7,14.417152]
[1748939558444,7.76926301,2606.1,2605.8,10.0]
[1748939558640,7.76926622,2606.1,2605.6,14.436252]
[1748939558840,7.76926622,2606.1,2605.7,10.0]
[1748939559151,3.932,2606.1,2605.7,4.417152]
[1748939559541,7.76919939,2606.1,2605.7,4.417152]
[1748939559773,3.83730105,2606.0,2605.7,4.417152]
[1748939560020,3.932,2606.1,2605.9,2.91993504]
[1748939562020,3.932,2606.1,2605.9,15.614178]
[1748939562186,3.932,2606.1,2605.9,5.614178]
[1748939562389,3.932,2606.1,2605.9,4.507131]
[1748939562924,1.022,2606.3,2606.0,10.0]
[1748939563098,4.85892781,2606.3,2605.8,11.4417152]
[1748939563299,7.76801898,2606.2,2605.8,11.4417152]
[1748939563489,7.76801898,2606.2,2605.9,10.0]
[1748939563704,7.76801898,2606.2,2605.7,12.91993504]
[1748939564030,7.76801898,2606.2,2605.9,10.0]
[1748939564409,7.76801898,2606.2,2605.8,10.0]
[1748939565002,7.76801898,2606.2,2605.9,10.0]
[1748939565390,3.83716796,2606.1,2605.8,10.0]
[1748939565623,3.83716796,2606.1,2605.7,2.95010316]
[1748939565624,3.8374091,2606.0,2605.7,8.0]
[1748939565798,3.83746895,2605.9,2605.7,8.0]
[1748939566135,0.949,2605.9,2605.7,8.0]
[1748939566297,5.65820424,2605.9,2605.4,8.0]
[1748939566497,3.83767454,2605.8,2605.4,8.0]
[1748939566825,3.83781868,2605.7,2605.4,10.0]
[1748939567192,7.76862275,2605.8,2605.2,1.026]
[1748939567430,3.83798697,2605.6,2605.3,1.33]
[1748939567640,7.76903492,2605.5,2605.3,1.33]
[1748939567803,0.9495,2605.4,2605.3,1.33]
[1748939568004,4.78768223,2605.4,2605.3,1.33]
[1748939568309,0.9495,2605.4,2605.2,10.0]
[1748939568511,0.9495,2605.4,2605.1,10.0]
[1748939568714,0.9495,2605.4,2605.3,10.0]
[1748939569026,0.9495,2605.4,2605.2,10.0]
[1748939569538,8.7187176,2605.4,2605.1,8.0]
[1748939569695,8.7187176,2605.4,2605.1,10.0]
[1748939569900,8.7187176,2605.4,2605.0,10.38764709]
[1748939570235,8.7187176,2605.4,2605.0,8.0]
[1748939571103,4.8805,2605.4,2605.0,11.83873548]
[1748939571620,4.8805,2605.4,2605.0,8.0]
[1748939571933,3.931,2605.4,2605.2,2.91993504]
[1748939572339,3.931,2605.4,2605.0,14.75866421]
[1748939572540,3.931,2605.4,2605.2,10.0]
[1748939572738,3.931,2605.4,2605.2,2.351725]
[1748939572920,3.931,2605.4,2605.1,10.0]
[1748939573131,3.931,2605.4,2605.2,2.566725]
[1748939573434,3.931,2605.4,2605.2,10.0]
[1748939574005,3.931,2605.4,2605.1,10.0]
[1748939574420,3.8380397,2605.5,2605.2,10.0]
[1748939574633,3.931,2605.4,2605.2,10.0]
[1748939575561,3.931,2605.4,2605.0,11.30146252]
[1748939575562,7.76920333,2605.4,2605.1,10.0]
[1748939576229,0.9198,2605.3,2605.1,10.0]
[1748939576428,0.9198,2605.3,2605.2,10.0]
[1748939577043,0.9198,2605.3,2605.1,10.0]
[1748939577442,0.9198,2605.3,2605.2,10.0]
[1748939578430,0.9198,2605.3,2605.1,10.0]
[1748939579049,0.9198,2605.3,2605.2,10.0]
[1748939579455,0.9198,2605.3,2605.1,10.0]
[1748939579977,3.83697985,2606.3,2605.2,11.75013504]
[1748939580179,4.8749,2606.3,2605.6,2.91993504]
[1748939580361,3.83721744,2606.1,2605.6,2.91993504]
[1748939580673,8.63002959,2606.1,2605.6,8.0]
[1748939580877,3.83731709,2606.0,2605.6,8.0]
[1748939581379,3.83759306,2605.8,2605.3,2.714]
[1748939581675,3.931,2605.7,2605.3,2.843052]
[1748939581870,3.931,2605.7,2605.4,10.0]
[1748939582061,3.931,2605.7,2605.3,4.582834]
[1748939582248,7.76875223,2605.7,2605.4,10.0]
[1748939582447,3.931,2605.7,2605.3,2.843052]
[1748939582650,3.931,2605.7,2605.4,12.91993504]
[1748939583178,3.931,2605.7,2605.4,2.91993504]
[1748939584085,0.9938,2605.6,2605.2,10.91993504]
[1748939584264,0.9938,2605.6,2605.2,14.75838818]
[1748939584460,0.9938,2605.6,2605.2,10.91993504]
[1748939586538,4.83169875,2605.6,2605.2,10.91993504]
[1748939587493,4.83169875,2605.6,2605.1,2.91993504]
[1748939587494,4.83171512,2605.6,2605.1,2.91993504]
[1748939587775,3.8381255,2605.5,2605.2,8.0]
[1748939588138,3.8381255,2605.5,2605.1,2.91993504]
[1748939589377,3.8381255,2605.5,2605.2,10.0]
[1748939589761,3.8381255,2605.5,2605.1,12.91993504]
[1748939589979,5.70801272,2605.6,2605.1,2.91993504]
[1748939590186,1.87007151,2605.6,2605.1,12.91993504]
[1748939590385,1.87007151,2605.6,2605.2,10.0]
[1748939590702,0.96388524,2605.5,2605.1,2.91993504]
[1748939590887,3.83825802,2605.4,2605.1,2.91993504]
[1748939591064,3.83825802,2605.4,2605.1,10.0]
[1748939591264,3.83829567,2605.4,2605.1,10.0]
[1748939592711,3.83847689,2605.2,2605.0,0.38152748]
[1748939592862,0.38384769,2605.1,2604.8,0.20018219]
[1748939593062,3.931,2605.0,2604.8,0.20018219]
[1748939594358,1.0158,2605.3,2604.9,2.91993504]
[1748939594564,3.931,2605.1,2604.9,2.91993504]
[1748939596274,4.85413953,2605.3,2604.9,2.91993504]
[1748939596469,0.9673,2605.5,2605.1,2.91993504]
[1748939596706,3.931,2605.4,2605.1,2.91993504]
[1748939597104,0.9673,2605.5,2605.2,10.0]
[1748939597312,3.932,2605.4,2605.1,6.75854484]
[1748939597531,3.932,2605.4,2605.1,8.81828753]
[1748939598233,3.932,2605.4,2605.2,10.0]
[1748939599841,3.932,2605.4,2605.1,2.91993504]
[1748939601513,3.931,2605.4,2605.1,2.91993504]
[1748939601917,3.931,2605.4,2605.1,12.91993504]
[1748939602658,3.931,2605.4,2605.1,2.91993504]
[1748939605058,4.80538192,2605.5,2605.1,2.91993504]
[1748939605261,3.931,2605.4,2605.1,2.91993504]
[1748939605963,0.9673,2605.5,2605.1,2.91993504]
[1748939606164,0.9673,2605.5,2605.3,2.91993504]
[1748939606165,3.931,2605.5,2605.3,2.91993504]
[1748939608775,7.76889075,2605.6,2605.3,2.91993504]
[1748939609169,3.931,2605.6,2605.3,2.91993504]
[1748939611288,3.83778607,2605.7,2605.3,2.91993504]
[1748939611449,3.931,2605.6,2605.3,2.91993504]
[1748939612873,1.0248,2605.5,2605.1,8.0]
[1748939613464,4.8628832,2605.5,2605.1,8.0]
[1748939613885,3.83819254,2605.4,2605.1,8.0]
[1748939614085,3.83863998,2605.1,2604.9,8.0]
[1748939614296,4.85677568,2605.2,2604.7,0.37531343]
[1748939614592,8.78777568,2605.2,2604.8,1.33]
[1748939614798,6.21180027,2605.2,2604.6,2.64227701]
[1748939614998,10.05029265,2605.2,2604.5,8.0]
[1748939615197,3.83888496,2605.0,2604.5,8.0]
[1748939615401,3.931,2604.9,2604.5,8.38660159]
[1748939615900,4.9225,2604.9,2604.5,8.38660159]
[1748939616099,8.76142383,2604.9,2604.5,0.38660159]
[1748939616326,3.83908543,2604.8,2604.5,0.38660159]
[1748939616463,3.8391635,2604.8,2604.2,13.83992845]
[1748939616663,3.8391635,2604.8,2604.4,8.0]
[1748939617064,0.9779,2604.6,2604.3,1.33]
[1748939617271,8.74826983,2604.6,2604.1,12.93993504]
[1748939617472,6.16763374,2604.6,2604.2,10.38614153]
[1748939617677,3.83966595,2604.4,2604.2,0.38614153]
[1748939617895,3.931,2604.3,2604.2,0.38614153]
[1748939618386,3.931,2604.3,2604.1,0.02]
[1748939619318,7.77080565,2604.3,2604.1,0.02]
[1748939619613,4.77435084,2604.2,2604.1,0.02]
[1748939620190,0.9344,2604.2,2604.1,0.02]
[1748939621092,4.77435084,2604.2,2604.1,0.02]
[1748939622451,6.02885345,2604.2,2604.1,0.02]
[1748939623856,5.09445345,2604.2,2604.1,0.02]
[1748939624125,6.08345345,2604.2,2604.1,0.02]
[1748939624326,6.63345345,2604.2,2604.1,0.02]
[1748939633536,10.56645345,2604.2,2604.1,0.02]
[1748939645865,10.60487652,2604.2,2604.1,0.02]
[1748939646066,10.56645345,2604.2,2604.1,0.02]
[1748939646884,21.48638849,2604.2,2604.1,0.02]
[1748939647082,29.78165061,2604.2,2604.1,0.02]
[1748939647980,5.37622593,2603.2,2602.5,0.8785]
[1748939648184,5.37622593,2603.2,2602.5,8.8785]
[1748939648185,10.23097706,2603.2,2602.5,8.8785]
[1748939648571,3.84190294,2602.9,2602.4,2.91993504]
[1748939648765,3.84190294,2602.9,2602.4,3.10997533]
[1748939649143,3.84190294,2602.9,2602.4,3.50212767]
[1748939649856,3.84176216,2603.0,2602.4,3.50212767]
[1748939650176,3.8417461,2603.0,2602.4,13.31208738]
[1748939650381,3.84210246,2602.8,2602.4,3.31208738]
[1748939651182,3.84210246,2602.8,2602.4,13.31208738]
[1748939651341,3.84210246,2602.8,2602.4,3.31208738]
[1748939651977,3.84210246,2602.8,2602.4,13.31208738]
[1748939652374,3.84210246,2602.8,2602.4,3.31208738]
[1748939652592,3.84210246,2602.8,2602.5,8.0]
[1748939653990,3.84216869,2602.7,2602.5,8.0]
[1748939654592,3.84201124,2602.9,2602.5,8.0]
[1748939654780,3.84172109,2603.0,2602.5,8.0]
[1748939654781,3.84206707,2602.8,2602.5,8.0]
[1748939654974,7.77506707,2602.8,2602.5,8.0]
[1748939655716,3.84245917,2602.5,2602.4,0.39215234]
[1748939655883,4.8767,2602.8,2602.1,8.02]
[1748939656207,5.74854727,2602.8,2602.1,8.02]
[1748939656420,3.84257071,2602.5,2602.1,8.02]
[1748939656582,3.84268754,2602.4,2602.1,0.02]
[1748939656915,3.933,2602.4,2602.1,8.02]
[1748939657117,1.026,2603.1,2602.3,8.0]
[1748939657409,3.84198845,2602.9,2602.4,2.91993504]
[1748939657619,0.55,2602.9,2602.2,2.91993504]
[1748939657822,3.84248427,2602.5,2602.3,8.0]
[1748939658114,3.933,2602.6,2602.1,0.02]
[1748939658323,3.84274362,2602.4,2602.1,0.02]
[1748939658491,3.84252133,2602.5,2602.1,3.32862178]
[1748939658814,3.84252133,2602.5,2602.1,2.93993504]
[1748939659480,3.933,2602.6,2602.1,2.93993504]
[1748939659899,3.84251402,2602.5,2602.1,2.93993504]
[1748939660885,7.77538267,2602.6,2602.1,2.93993504]
[1748939661719,3.84253668,2602.5,2602.1,2.93993504]
[1748939662016,7.77538337,2602.6,2602.1,2.93993504]
[1748939662595,3.933,2602.6,2602.1,2.93993504]
[1748939662792,3.84235285,2602.6,2602.1,6.78298116]
[1748939662994,3.934,2602.6,2602.5,2.91993504]
[1748939663184,3.934,2602.6,2602.3,2.91993504]
[1748939664323,7.77634124,2602.6,2602.3,2.91993504]
[1748939665198,3.84247667,2602.5,2602.3,2.91993504]
[1748939665500,3.84247667,2602.5,2602.2,8.0]
[1748939665818,3.84270855,2602.4,2602.1,0.40925844]
[1748939665989,7.77638612,2602.6,2602.1,11.32919348]
[1748939666386,3.84264985,2602.4,2602.1,11.32919348]
[1748939666586,3.84252207,2602.5,2602.1,11.32919348]
[1748939667030,3.8426525,2602.4,2602.1,11.32919348]
[1748939667323,8.65389704,2602.6,2602.1,11.32919348]
[1748939667523,3.84252058,2602.5,2602.1,11.32919348]
[1748939667888,3.84269611,2602.4,2602.1,11.32919348]
[1748939669321,3.84248664,2602.5,2602.1,11.32919348]
[1748939669511,3.84245917,2602.5,2602.1,3.32919348]
[1748939670022,4.70786195,2602.5,2602.1,2.93993504]
[1748939670324,3.84287786,2602.3,2602.1,0.02]
[1748939670621,7.77687786,2602.3,2602.1,0.02]
[1748939670826,3.84290215,2602.2,2602.1,0.02]
[1748939671714,7.77685179,2602.3,2602.1,0.02]
[1748939672390,3.84290215,2602.2,2602.1,0.02]
[1748939672627,5.39992522,2602.2,2602.1,0.02]
[1748939673297,8.31986026,2602.2,2602.1,0.02]
[1748939673497,8.28143719,2602.2,2602.1,0.02]
[1748939673994,5.36150215,2602.2,2602.1,0.02]
[1748939674189,8.0357676,2602.2,2602.1,0.02]
[1748939674429,7.99734453,2602.2,2602.1,0.02]
[1748939674628,18.91727957,2602.2,2602.1,0.02]
[1748939677000,18.91727957,2602.2,2601.1,0.02]
[1748939677001,3.84437951,2601.2,2601.1,0.02]
[1748939677205,8.32837951,2601.2,2601.1,0.02]
[1748939677499,9.64691123,2601.2,2601.1,0.02]
[1748939680547,10.63091123,2601.2,2601.1,0.02]
[1748939682199,10.63191123,2601.2,2601.1,0.02]
[1748939683038,8.77897951,2601.2,2601.1,0.02]
[1748939683300,3.84536527,2600.6,2600.1,3.01553504]
[1748939683500,3.935,2600.5,2600.1,3.01553504]
[1748939683744,7.78043647,2600.5,2600.1,3.01553504]
[1748939685043,7.78042331,2600.5,2600.1,3.01553504]
[1748939685537,3.935,2600.5,2600.3,2.91993504]
[1748939687111,7.78045475,2600.5,2600.3,2.91993504]
[1748939688004,7.78045475,2600.5,2600.1,0.78178268]
[1748939688206,7.78045475,2600.5,2600.2,2.91993504]
[1748939688502,3.84533185,2600.6,2600.4,2.91993504]
[1748939688707,7.78012069,2600.7,2600.4,2.91993504]
[1748939688964,3.84526741,2600.6,2600.4,2.91993504]
[1748939689161,3.935,2600.7,2600.4,2.91993504]
[1748939689461,7.78013862,2600.7,2600.4,2.91993504]
[1748939689662,3.935,2600.6,2600.4,2.91993504]
[1748939689819,7.7802871,2600.6,2600.4,2.91993504]
[1748939690019,3.8452871,2600.6,2600.4,2.91993504]
[1748939690270,7.7812871,2600.6,2600.4,2.91993504]
[1748939691651,3.84541434,2600.5,2600.3,2.91993504]
[1748939692790,3.84541434,2600.5,2600.1,8.78178268]
[1748939692951,3.84541434,2600.5,2600.1,7.53178268]
[1748939693150,3.84541434,2600.5,2600.2,10.0]
[1748939693783,3.84541695,2600.5,2600.2,10.0]
[1748939694492,3.84543764,2600.5,2600.2,10.0]
[1748939694859,3.84543764,2600.5,2599.8,0.60517253]
[1748939694860,1.0087,2600.4,2599.8,0.60517253]
[1748939695060,3.936,2600.3,2599.9,8.0]
[1748939695693,7.78164064,2600.4,2599.9,8.0]
[1748939695854,3.84564064,2600.4,2599.9,8.0]
[1748939696056,7.78158981,2600.4,2600.0,2.91993504]
[1748939696288,3.936,2600.4,2600.0,2.91993504]
[1748939696593,7.78150657,2600.5,2600.0,2.91993504]
[1748939697196,3.84537235,2600.6,2600.0,6.76608454]
[1748939697357,3.936,2600.5,2600.1,10.0]
[1748939697561,3.936,2600.5,2600.1,8.91759]
[1748939697782,3.84557837,2600.4,2600.1,15.954596]
[1748939697988,3.84557837,2600.4,2600.2,10.0]
[1748939698190,7.78144645,2600.5,2600.1,17.645414]
[1748939698375,7.78144645,2600.5,2600.2,10.0]
[1748939698676,3.84561287,2600.4,2600.2,10.0]
[1748939698876,3.84556617,2600.4,2600.1,17.645414]
[1748939699098,3.84556617,2600.4,2600.2,10.0]
[1748939699266,3.84556617,2600.4,2600.1,17.645414]
[1748939699466,7.78152278,2600.5,2600.2,10.0]
[1748939699668,3.84556786,2600.4,2600.1,17.524293]
[1748939699868,3.84556786,2600.4,2600.2,10.0]
[1748939700099,3.84556786,2600.4,2600.0,2.91993504]
[1748939700100,3.84556786,2600.4,2600.1,14.045293]
[1748939700306,3.84556786,2600.4,2600.2,10.0]
[1748939700822,3.936,2600.5,2600.1,17.284293]
[1748939701111,7.78146832,2600.5,2600.2,10.0]
[1748939701600,3.84558989,2600.4,2600.1,17.284293]
[1748939701903,3.84558989,2600.4,2600.1,14.764293]
[1748939702064,3.936,2600.5,2600.2,10.0]
[1748939702267,7.7814764,2600.5,2600.1,14.764293]
[1748939702505,3.936,2600.5,2600.2,10.0]
[1748939702819,3.84567448,2600.4,2600.0,12.91993504]
[1748939703010,3.84567448,2600.4,2600.1,10.0]
[1748939703568,3.84572191,2600.3,2600.0,10.0]
[1748939704095,3.84562155,2600.4,2600.1,3.058697]
[1748939704301,3.84562155,2600.4,2600.0,10.0]
[1748939704497,7.78147903,2600.5,2600.1,9.189479]
[1748939704704,3.84556226,2600.4,2600.1,9.189479]
[1748939704898,3.84556226,2600.4,2600.0,12.12861404]
[1748939705085,3.84556226,2600.4,2600.1,7.965479]
[1748939705289,3.84556226,2600.4,2600.2,10.0]
[1748939705596,3.84556226,2600.4,2600.1,9.189479]
[1748939705996,3.84556226,2600.4,2600.0,2.91993504]
[1748939706305,3.84556226,2600.4,2600.2,10.0]
[1748939706507,3.84556226,2600.4,2600.1,15.908697]
[1748939706812,3.84556226,2600.4,2600.2,10.0]
[1748939707013,7.78142165,2600.5,2600.1,3.388697]
[1748939707399,3.84556952,2600.4,2600.1,3.388697]
[1748939707731,3.84556952,2600.4,2599.9,14.76610114]
[1748939707920,3.84556952,2600.4,2600.0,3.973208]
[1748939708131,3.84571288,2600.3,2599.9,12.42219518]
[1748939708426,3.84572528,2600.3,2599.9,12.42219518]
[1748939709230,3.84563088,2600.4,2599.9,12.42219518]
[1748939710638,3.84556222,2600.4,2599.9,9.50226014]
[1748939710793,7.78144771,2600.5,2599.9,9.50226014]
[1748939710998,3.84573365,2600.3,2599.9,9.50226014]
[1748939711723,3.84586997,2600.2,2599.9,9.50226014]
[1748939711922,3.84586997,2600.2,2599.9,7.5]
[1748939712339,3.936,2600.1,2599.7,0.38394173]
[1748939712499,3.84658725,2599.8,2599.3,4.14649627]
[1748939712703,7.78236802,2599.9,2599.4,4.852073]
[1748939712921,7.78236802,2599.9,2599.6,6.75]
[1748939713532,7.78236802,2599.9,2599.6,6.94488367]
[1748939713739,7.78236802,2599.9,2599.6,6.75]
[1748939713916,3.936,2599.9,2599.6,6.75]
[1748939714408,7.78231357,2599.9,2599.6,6.75]
[1748939714609,3.936,2599.9,2599.6,6.75]
[1748939714846,7.78233604,2599.9,2599.6,6.75]
[1748939715145,3.936,2599.9,2599.6,6.75]
[1748939715305,7.78233456,2599.9,2599.6,6.75]
[1748939715501,3.936,2599.9,2599.6,6.75]
[1748939715942,7.78234042,2599.9,2599.6,6.75]
[1748939716341,3.936,2599.9,2599.6,6.75]
[1748939717114,7.78234034,2599.9,2599.6,6.75]
[1748939717451,3.84659768,2599.7,2599.2,12.034713]
[1748939717651,3.84700799,2599.5,2599.4,8.0]
[1748939717810,3.84700799,2599.5,2599.2,2.034713]
[1748939717811,3.84700799,2599.5,2599.2,2.028913]
[1748939718010,3.84700799,2599.5,2599.4,8.0]
[1748939718310,7.78302244,2599.5,2599.1,0.02]
[1748939718539,3.84713145,2599.4,2599.1,0.02]
[1748939718808,3.84709423,2599.4,2599.1,0.02]
[1748939719040,3.84709423,2599.4,2599.2,10.0]